fUST/lending_fUST_20260422
["ID","MTS","AMOUNT","RATE_DAILY","PERIOD"]
[420974553,1776839931042,799.0,0.00011,30]
[420974554,1776839944050,9883.0,0.00024658,120]
[420974567,1776840404134,450.0,0.00024658,120]
[420974581,1776840632719,1032.0,0.00024649,120]
[420974584,1776840632747,-841.35752164,0.00013177,10]
[420974590,1776840632794,-964.89145865,0.00013177,10]
[420974592,1776840632805,-3193.75101971,0.00013177,10]
[420974594,1776840632815,-159.72798319,0.0001331,2]
[420974595,1776840632824,-1000.0,0.00013699,2]
[420974596,1776840632833,-188.47902017,0.0001531,2]
[420974597,1776840632843,-525.0,0.00015655,2]
[420974598,1776840632852,-1552.8,0.00016438,2]
[420974599,1776840632862,-275.93,0.00016438,2]
[420974600,1776840632872,-275.93,0.00016438,2]
[420974601,1776840632881,-1552.8,0.00016744,2]
[420974602,1776840632891,-325.3724333,0.00016782,2]
[420974603,1776840632900,-501.38469941,0.00016856,2]
[420974605,1776840632910,-18554.3696567,0.00016857,2]
[420974607,1776840632919,-1038.0,0.00017,2]
[420974609,1776840632928,-1552.8,0.00017049,2]
[420974612,1776840632937,-500.0,0.0001708,2]
[420974615,1776840632946,-500.0,0.0001708,2]
[420974617,1776840632956,-500.0,0.0001708,2]
[420974620,1776840632965,-500.0,0.0001708,2]
[420974623,1776840632974,-433.75677115,0.0001708,2]
[420974626,1776840632983,-500.0,0.0001708,2]
[420974628,1776840632992,-500.0,0.0001708,2]
[420974630,1776840633001,-500.0,0.0001708,2]
[420974632,1776840633010,-500.0,0.0001708,2]
[420974634,1776840633020,-500.0,0.0001708,2]
[420974636,1776840633029,-500.0,0.0001708,2]
[420974638,1776840633038,-530.36967248,0.0001708,2]
[420974640,1776840633048,-22123.96476752,0.00017081,2]
[420974642,1776840633057,-217.23005714,0.0001731,2]
[420974644,1776840633067,-1552.8,0.00017355,2]
[420974646,1776840633076,-600.0,0.00017422,2]
[420974648,1776840633085,-645.7285868,0.0001751,2]
[420974650,1776840633094,-2580.33143287,0.0001751,2]
[420974652,1776840633103,-1552.8,0.0001766,2]
[420974654,1776840633112,-455.8308597,0.00017662,2]
[420974656,1776840633122,-325.2847064,0.00017662,2]
[420974658,1776840633131,-150.01,0.00017799,2]
[420974660,1776840633140,-500.0,0.00017799,2]
[420974662,1776840633149,-196.06033595,0.00017799,2]
[420974664,1776840633159,-500.0,0.00017799,2]
[420974666,1776840633168,-500.0,0.00017799,2]
[420974668,1776840633177,-500.0,0.00017799,2]
[420974670,1776840633187,-500.0,0.00017799,2]
[420974672,1776840633196,-500.0,0.00017799,2]
[420974674,1776840633205,-529.01877918,0.000178,2]
[420974676,1776840633215,-100155.0,0.000178,2]
[420974678,1776840633224,-450.97,0.000179,2]
[420974680,1776840633234,-160.0,0.000179,5]
[420974681,1776840633243,-160.26033187,0.000179,4]
[420974683,1776840633252,-7910.26244028,0.0001792,2]
[420974685,1776840633261,-1552.8,0.00017966,2]
[420974687,1776840633271,-15522.22137568,0.00018,2]
[420974689,1776840633281,-10000.0,0.00018247,2]
[420974691,1776840633291,-1552.8,0.00018271,2]
[420974693,1776840633300,-432.7312355,0.0001844,2]
[420974695,1776840633309,-455.7675055,0.0001844,2]
[420974697,1776840633319,-455.7675055,0.0001844,2]
[420974698,1776840633328,-353.754298,0.00018502,2]
[420974700,1776840633337,-1552.8,0.00018577,2]
[420974703,1776840633348,-55818.582674,0.000188,2]
[420974704,1776840633359,-1199.3611719,0.00018823,2]
[420974706,1776840633369,-1552.8,0.00018882,2]
[420974708,1776840633378,-439.0,0.00018887,2]
[420974710,1776840633388,-7508.0,0.000189,2]
[420974712,1776840633398,-530.987,0.00018992,2]
[420974714,1776840633408,-200.0,0.00019,2]
[420974716,1776840633417,-89.32738289,0.00019,2]
[420974717,1776840633433,-6921.58500571,0.00019,2]
[420974718,1776840633442,-592.0,0.00019,2]
[420974719,1776840633452,-335.0,0.00019,2]
[420974720,1776840633462,-500.26742293,0.00019081,2]
[420974721,1776840633472,-500.0,0.00019081,2]
[420974722,1776840633481,-720.0,0.00019164,2]
[420974723,1776840633490,-624.4238,0.00019168,2]
[420974724,1776840633499,-624.4238,0.00019168,2]
[420974725,1776840633508,-624.4238,0.00019168,2]
[420974726,1776840633517,-624.4238,0.00019168,2]
[420974727,1776840633527,-353.754298,0.00019169,2]
[420974728,1776840633536,-282.26378657,0.00019178,2]
[420974734,1776840639206,-5000.0,0.00018986,10]
[420974735,1776840639216,-907.73621343,0.00019178,2]
[420974736,1776840639225,-1552.8,0.00019188,5]
[420974738,1776840639353,-27.32555692,0.00019223,2]
[420974750,1776840641319,-223.81297051,0.00017799,2]
[420974751,1776840641328,-123.54244308,0.00019223,2]
[420974752,1776840641338,-245.98109412,0.0001931,2]
[420974753,1776840641347,-194.0,0.000194,2]
[420974754,1776840641356,-360.51609823,0.00019403,2]
[420974755,1776840641366,-2904.78998402,0.00019404,2]
[420974765,1776840647004,-184.0,0.00017493,2]
[420974766,1776840647013,-273.67739882,0.00019403,2]
[420974767,1776840647022,-83.24631283,0.00019404,2]
[420974768,1776840647058,-36127.4505039,0.00019404,2]
[420974769,1776840647167,-7555.21288691,0.00019404,2]
[420974770,1776840647178,-300.0,0.00019404,2]
[420974771,1776840647540,-5551.52627168,0.00019404,2]
[420974772,1776840647552,-4895.9349,0.00019404,2]
[420974775,1776840871166,200.0,0.00023833,120]
[420974776,1776840983383,1000.0,0.00024658,120]
[420974777,1776841017244,150.0,0.000135,120]
[420974778,1776841017283,150.0,0.00013905,120]
[420974779,1776841017431,150.0,0.0001431,120]
[420974780,1776841017582,150.0,0.00014715,120]
[420974781,1776841017972,150.0,0.0001512,120]
[420974782,1776841050493,200.0,0.0002313,120]
[420974787,1776841110491,200.0,0.00022179,120]
[420974788,1776841211438,1025.0,0.00024415,120]
[420974789,1776841230459,200.0,0.00024059,120]
[420974790,1776841246540,183.14043517,0.00024,120]
[420974791,1776841249523,959.48319197,0.00024657,120]
[420974792,1776841254737,656.48822786,0.0002,120]
[420974793,1776841256520,150.64749156,0.00024,120]
[420974794,1776841257631,290.05456552,0.00024,120]
[420974795,1776841271605,1991.12,0.00024059,120]
[420974796,1776841290468,200.0,0.00024448,120]
[420974797,1776841293303,1000.0,0.00024658,120]
[420974800,1776841410707,200.0,0.00024523,120]
[420974801,1776841470504,200.0,0.00024583,120]
[420974802,1776841513606,718.0,0.00024315,120]
[420974803,1776841535386,232.0,0.00024463,120]
[420974804,1776841538382,-388.62725706,9.238e-05,10]
[420974805,1776841538490,-300.0,9.238e-05,10]
[420974806,1776841559022,1393.78,0.00024463,120]
[420974807,1776841590719,200.0,0.00024107,120]
[420974808,1776841603170,1000.0,0.00024658,120]
[420974809,1776841693628,-500.0,0.00025008,120]
[420974810,1776841693666,-500.0,0.00025008,120]
[420974811,1776841693702,-500.0,0.00025008,120]
[420974812,1776841693739,-500.0,0.00025008,120]
[420974813,1776841693774,-500.0,0.00025008,120]
[420974814,1776841693811,-202.78,0.00025008,120]
[420974815,1776841693846,-500.0,0.00025008,120]
[420974816,1776841693884,-500.0,0.00025008,120]
[420974817,1776841693920,-500.0,0.00025008,120]
[420974818,1776841693957,-500.0,0.00025008,120]
[420974819,1776841693993,-500.0,0.00025008,120]
[420974820,1776841694029,-500.0,0.00025008,120]
[420974821,1776841694065,-286.34,0.00025008,120]
[420974822,1776841694100,-500.0,0.00025008,120]
[420974823,1776841694135,-500.0,0.00025008,120]
[420974824,1776841694168,-500.0,0.00025008,120]
[420974825,1776841694202,-500.0,0.00025008,120]
[420974826,1776841694236,-500.0,0.00025008,120]
[420974827,1776841694270,-186.7,0.00025008,120]
[420974828,1776841694303,-500.0,0.00025008,120]
[420974829,1776841694337,-500.0,0.00025008,120]
[420974830,1776841694370,-257.83,0.00025008,120]
[420974831,1776841694404,-500.0,0.00025008,120]
[420974832,1776841694438,-500.0,0.00025008,120]
[420974833,1776841694472,-500.0,0.00025008,120]
[420974834,1776841694507,-522.09707758,0.00025008,120]
[420974835,1776841694540,-500.0,0.00025008,120]
[420974836,1776841694576,-500.0,0.00025008,120]
[420974837,1776841694613,-500.0,0.00025008,120]
[420974838,1776841694649,-500.0,0.00025008,120]
[420974839,1776841694686,-500.0,0.00025008,120]
[420974840,1776841694721,-500.0,0.00025008,120]
[420974841,1776841694757,-500.0,0.00025008,120]
[420974842,1776841694793,-571.68,0.00025008,120]
[420974843,1776841694828,-500.0,0.00025008,120]
[420974844,1776841694862,-500.0,0.00025008,120]
[420974845,1776841694898,-500.0,0.00025008,120]
[420974846,1776841694933,-500.0,0.00025008,120]
[420974847,1776841695069,-536.32717106,0.00025008,120]
[420974848,1776841695106,-500.0,0.00025008,120]
[420974849,1776841695141,-500.0,0.00025008,120]
[420974850,1776841695176,-500.0,0.00025008,120]
[420974851,1776841695212,-549.41,0.00025008,120]
[420974852,1776841695246,-608.59413035,0.00025008,120]
[420974853,1776841695283,-500.0,0.00025008,120]
[420974854,1776841695321,-500.0,0.00025008,120]
[420974855,1776841695358,-500.0,0.00025008,120]
[420974856,1776841695392,-500.0,0.00025008,120]
[420974857,1776841695426,-500.0,0.00025008,120]
[420974858,1776841695462,-554.04,0.00025008,120]
[420974859,1776841695497,-500.0,0.00025008,120]
[420974860,1776841695533,-500.0,0.00025008,120]
[420974861,1776841695568,-500.0,0.00025008,120]
[420974862,1776841695602,-500.0,0.00025008,120]
[420974863,1776841695638,-500.0,0.00025008,120]
[420974864,1776841695673,-551.18273407,0.00025008,120]
[420974865,1776841695709,-500.0,0.00025008,120]
[420974866,1776841695743,-500.0,0.00025008,120]
[420974867,1776841695779,-500.0,0.00025008,120]
[420974868,1776841695814,-500.0,0.00025008,120]
[420974869,1776841695852,-500.0,0.00025008,120]
[420974870,1776841695888,-250.0,0.00025008,120]
[420974871,1776841695952,-500.0,0.00025008,120]
[420974872,1776841696017,-500.0,0.00025008,120]
[420974873,1776841696073,-500.0,0.00025008,120]
[420974874,1776841696135,-611.24,0.00025008,120]
[420974875,1776841696188,-500.0,0.00025008,120]
[420974876,1776841696240,-302.25008673,0.00025008,120]
[420974877,1776841696291,-486.86813545,0.00025008,120]
[420974878,1776841696339,-500.0,0.00025008,120]
[420974879,1776841696390,-500.0,0.00025008,120]
[420974880,1776841696438,-500.0,0.00025008,120]
[420974881,1776841696486,-500.0,0.00025008,120]
[420974882,1776841696535,-500.0,0.00025008,120]
[420974883,1776841696584,-500.0,0.00025008,120]
[420974884,1776841696637,-500.0,0.00025008,120]
[420974885,1776841696687,-648.22,0.00025008,120]
[420974886,1776841696736,-552.85,0.00025008,120]
[420974887,1776841696785,-500.0,0.00025008,120]
[420974888,1776841696834,-500.0,0.00025008,120]
[420974889,1776841696882,-500.0,0.00025008,120]
[420974890,1776841696934,-500.0,0.00025008,120]
[420974891,1776841696984,-500.0,0.00025008,120]
[420974892,1776841697036,-332.06,0.00025008,120]
[420974893,1776841697090,-500.0,0.00025008,120]
[420974894,1776841697338,-500.0,0.00025008,120]
[420974895,1776841697377,-500.0,0.00025008,120]
[420974896,1776841697414,-500.0,0.00025008,120]
[420974897,1776841697450,-500.0,0.00025008,120]
[420974898,1776841697485,-500.0,0.00025008,120]
[420974899,1776841697521,-486.08,0.00025008,120]
[420974900,1776841697556,-511.21669027,0.00025008,120]
[420974901,1776841697592,-500.0,0.00025008,120]
[420974902,1776841697627,-500.0,0.00025008,120]
[420974903,1776841697663,-500.0,0.00025008,120]
[420974904,1776841697699,-500.0,0.00025008,120]
[420974905,1776841697735,-500.0,0.00025008,120]
[420974906,1776841697770,-500.0,0.00025008,120]
[420974907,1776841697806,-500.0,0.00025008,120]
[420974908,1776841697842,-464.88,0.00025008,120]
[420974909,1776841697878,-500.0,0.00025008,120]
[420974910,1776841697917,-500.0,0.00025008,120]
[420974911,1776841697953,-508.58,0.00025008,120]
[420974912,1776841697991,-500.0,0.00025008,120]
[420974913,1776841698028,-500.0,0.00025008,120]
[420974914,1776841698065,-500.0,0.00025008,120]
[420974915,1776841698102,-500.0,0.00025008,120]
[420974916,1776841698137,-500.0,0.00025008,120]
[420974917,1776841698172,-500.0,0.00025008,120]
[420974918,1776841698206,-500.0,0.00025008,120]
[420974919,1776841698246,-500.0,0.00025008,120]
[420974920,1776841698281,-500.0,0.00025008,120]
[420974921,1776841698316,-306.82,0.00025008,120]
[420974922,1776841698352,-506.321533,0.00025008,120]
[420974923,1776841698387,-500.0,0.00025008,120]
[420974924,1776841698421,-269.36746273,0.00025008,120]
[420974925,1776841698456,-500.0,0.00025008,120]
[420974926,1776841698490,-500.0,0.00025008,120]
[420974927,1776841698525,-237.20325882,0.00025008,120]
[420974928,1776841698559,-500.0,0.00025008,120]
[420974929,1776841698594,-500.0,0.00025008,120]
[420974930,1776841698631,-500.0,0.00025008,120]
[420974931,1776841698667,-500.0,0.00025008,120]
[420974932,1776841698704,-500.0,0.00025008,120]
[420974933,1776841698741,-500.0,0.00025008,120]
[420974934,1776841698778,-500.0,0.00025008,120]
[420974935,1776841698814,-500.0,0.00025008,120]
[420974936,1776841698850,-223.51,0.00025008,120]
[420974937,1776841698886,-500.0,0.00025008,120]
[420974938,1776841698922,-500.0,0.00025008,120]
[420974939,1776841698958,-559.0,0.00025008,120]
[420974940,1776841698994,-500.0,0.00025008,120]
[420974941,1776841699133,-500.0,0.00025008,120]
[420974942,1776841699170,-500.0,0.00025008,120]
[420974943,1776841699205,-500.0,0.00025008,120]
[420974944,1776841699241,-500.0,0.00025008,120]
[420974945,1776841699276,-500.0,0.00025008,120]
[420974946,1776841699312,-319.82,0.00025008,120]
[420974947,1776841699347,-500.0,0.00025008,120]
[420974948,1776841699382,-572.44663668,0.00025008,120]
[420974949,1776841699417,-500.0,0.00025008,120]
[420974950,1776841699453,-500.0,0.00025008,120]
[420974951,1776841699488,-500.0,0.00025008,120]
[420974952,1776841699524,-500.0,0.00025008,120]
[420974953,1776841699559,-500.0,0.00025008,120]
[420974954,1776841699595,-500.0,0.00025008,120]
[420974955,1776841699630,-508.12058439,0.00025008,120]
[420974956,1776841699668,-500.0,0.00025008,120]
[420974957,1776841699705,-500.0,0.00025008,120]
[420974958,1776841699741,-500.0,0.00025008,120]
[420974959,1776841699779,-500.0,0.00025008,120]
[420974960,1776841699817,-337.2,0.00025008,120]
[420974961,1776841699853,-500.0,0.00025008,120]
[420974962,1776841699889,-500.0,0.00025008,120]
[420974963,1776841699925,-500.0,0.00025008,120]
[420974964,1776841699961,-500.0,0.00025008,120]
[420974965,1776841700001,-500.0,0.00025008,120]
[420974966,1776841700037,-500.0,0.00025008,120]
[420974967,1776841700074,-500.0,0.00025008,120]
[420974968,1776841700110,-513.03682675,0.00025008,120]
[420974969,1776841700147,-500.0,0.00025008,120]
[420974970,1776841700183,-500.0,0.00025008,120]
[420974971,1776841700219,-500.0,0.00025008,120]
[420974972,1776841700255,-556.26,0.00025008,120]
[420974973,1776841700292,-510.64390063,0.00025008,120]
[420974974,1776841700328,-500.0,0.00025008,120]
[420974975,1776841700365,-500.0,0.00025008,120]
[420974976,1776841700402,-500.0,0.00025008,120]
[420974977,1776841700444,-490.14142386,0.00025008,120]
[420974978,1776841700481,-500.0,0.00025008,120]
[420974979,1776841700518,-500.0,0.00025008,120]
[420974980,1776841700555,-500.0,0.00025008,120]
[420974981,1776841700592,-500.0,0.00025008,120]
[420974982,1776841700630,-500.0,0.00025008,120]
[420974983,1776841700667,-379.4,0.00025008,120]
[420974984,1776841700706,-500.0,0.00025008,120]
[420974985,1776841700744,-500.0,0.00025008,120]
[420974986,1776841700781,-500.0,0.00025008,120]
[420974987,1776841700818,-500.0,0.00025008,120]
[420974988,1776841700857,-500.0,0.00025008,120]
[420974989,1776841700894,-500.0,0.00025008,120]
[420974990,1776841700933,-500.0,0.00025008,120]
[420974991,1776841701053,-500.0,0.00025008,120]
[420974992,1776841701105,-500.0,0.00025008,120]
[420974993,1776841701142,-573.21,0.00025008,120]
[420974994,1776841701180,-500.0,0.00025008,120]
[420974995,1776841701217,-500.0,0.00025008,120]
[420974996,1776841701254,-500.0,0.00025008,120]
[420974997,1776841701289,-500.0,0.00025008,120]
[420974998,1776841701325,-500.0,0.00025008,120]
[420974999,1776841701360,-500.0,0.00025008,120]
[420975000,1776841701395,-500.0,0.00025008,120]
[420975001,1776841701431,-500.0,0.00025008,120]
[420975002,1776841701467,-160.89,0.00025008,120]
[420975003,1776841701503,-527.96924245,0.00025008,120]
[420975004,1776841701539,-500.0,0.00025008,120]
[420975005,1776841701575,-521.92,0.00025008,120]
[420975006,1776841701611,-500.0,0.00025008,120]
[420975007,1776841701648,-500.0,0.00025008,120]
[420975008,1776841701685,-176.00785698,0.00025008,120]
[420975009,1776841701722,-517.01211564,0.00025008,120]
[420975010,1776841701758,-500.0,0.00025008,120]
[420975011,1776841701793,-500.0,0.00025008,120]
[420975012,1776841701828,-500.0,0.00025008,120]
[420975013,1776841701864,-500.0,0.00025008,120]
[420975014,1776841701901,-500.0,0.00025008,120]
[420975015,1776841701937,-500.0,0.00025008,120]
[420975016,1776841701974,-500.0,0.00025008,120]
[420975017,1776841702010,-500.0,0.00025008,120]
[420975018,1776841702050,-178.29,0.00025008,120]
[420975019,1776841702089,-500.0,0.00025008,120]
[420975020,1776841702127,-500.0,0.00025008,120]
[420975021,1776841702163,-533.5452902,0.00025008,120]
[420975022,1776841702199,-537.37,0.00025008,120]
[420975023,1776841702241,-266.44450678,0.00025008,120]
[420975024,1776841702277,-500.0,0.00025008,120]
[420975025,1776841702313,-500.0,0.00025008,120]
[420975026,1776841702350,-500.0,0.00025008,120]
[420975027,1776841702386,-500.0,0.00025008,120]
[420975028,1776841702422,-500.0,0.00025008,120]
[420975029,1776841702457,-496.44,0.00025008,120]
[420975030,1776841702492,-500.0,0.00025008,120]
[420975031,1776841702529,-500.0,0.00025008,120]
[420975032,1776841702566,-500.0,0.00025008,120]
[420975033,1776841702603,-286.20655914,0.00025008,120]
[420975034,1776841702647,-500.0,0.00025008,120]
[420975035,1776841702686,-502.15198637,0.00025008,120]
[420975036,1776841702725,-500.0,0.00025008,120]
[420975037,1776841702765,-500.0,0.00025008,120]
[420975038,1776841702805,-509.04063584,0.00025008,120]
[420975039,1776841702846,-500.0,0.00025008,120]
[420975040,1776841702980,-500.0,0.00025008,120]
[420975041,1776841703019,-507.51143927,0.00025008,120]
[420975042,1776841703058,-500.0,0.00025008,120]
[420975043,1776841703099,-540.17396466,0.00025008,120]
[420975044,1776841703138,-500.0,0.00025008,120]
[420975045,1776841703177,-610.00080554,0.00025008,120]
[420975046,1776841703218,-523.37240446,0.00025008,120]
[420975047,1776841703258,-500.0,0.00025008,120]
[420975048,1776841703298,-500.0,0.00025008,120]
[420975049,1776841703337,-500.0,0.00025008,120]
[420975050,1776841703376,-534.45445686,0.00025008,120]
[420975051,1776841703415,-500.0,0.00025008,120]
[420975052,1776841703454,-500.0,0.00025008,120]
[420975053,1776841703494,-500.0,0.00025008,120]
[420975054,1776841703534,-520.05538045,0.00025008,120]
[420975055,1776841703575,-500.0,0.00025008,120]
[420975056,1776841703616,-500.0,0.00025008,120]
[420975057,1776841703657,-500.0,0.00025008,120]
[420975058,1776841703697,-500.0,0.00025008,120]
[420975059,1776841703738,-296.96,0.00025008,120]
[420975060,1776841703777,-500.0,0.00025008,120]
[420975061,1776841703818,-379.69533954,0.00025008,120]
[420975062,1776841703858,-500.0,0.00025008,120]
[420975063,1776841703899,-500.0,0.00025008,120]
[420975064,1776841703938,-506.87148619,0.00025008,120]
[420975065,1776841704000,-500.0,0.00025008,120]
[420975066,1776841704062,-252.77,0.00025008,120]
[420975067,1776841704121,-500.0,0.00025008,120]
[420975068,1776841704187,-500.0,0.00025008,120]
[420975069,1776841704250,-479.64,0.00025008,120]
[420975070,1776841704303,-314.6739281,0.00025008,120]
[420975071,1776841704356,-500.0,0.00025008,120]
[420975072,1776841704414,-500.0,0.00025008,120]
[420975073,1776841704470,-500.0,0.00025008,120]
[420975074,1776841704528,-500.0,0.00025008,120]
[420975075,1776841704583,-500.0,0.00025008,120]
[420975076,1776841704642,-500.0,0.00025008,120]
[420975077,1776841704699,-500.0,0.00025008,120]
[420975078,1776841704759,-500.0,0.00025008,120]
[420975079,1776841704816,-500.0,0.00025008,120]
[420975080,1776841704874,-500.0,0.00025008,120]
[420975081,1776841704932,-383.54,0.00025008,120]
[420975082,1776841704990,-500.0,0.00025008,120]
[420975083,1776841705047,-500.0,0.00025008,120]
[420975084,1776841705105,-277.14,0.00025008,120]
[420975085,1776841705162,-638.26629938,0.00025008,120]
[420975086,1776841705218,-500.0,0.00025008,120]
[420975087,1776841705276,-500.0,0.00025008,120]
[420975088,1776841705448,-527.51802707,0.00025008,120]
[420975089,1776841705493,-500.0,0.00025008,120]
[420975090,1776841705537,-510.35810105,0.00025008,120]
[420975091,1776841705582,-500.0,0.00025008,120]
[420975092,1776841705626,-500.0,0.00025008,120]
[420975093,1776841705670,-500.0,0.00025008,120]
[420975094,1776841705715,-500.0,0.00025008,120]
[420975095,1776841705759,-524.66855633,0.00025008,120]
[420975096,1776841705803,-500.0,0.00025008,120]
[420975097,1776841705847,-500.0,0.00025008,120]
[420975098,1776841705891,-526.15870871,0.00025008,120]
[420975099,1776841705935,-500.0,0.00025008,120]
[420975100,1776841705977,-500.0,0.00025008,120]
[420975101,1776841706021,-500.0,0.00025008,120]
[420975102,1776841706063,-500.0,0.00025008,120]
[420975103,1776841706107,-500.0,0.00025008,120]
[420975104,1776841706151,-594.70240246,0.00025008,120]
[420975105,1776841706195,-500.0,0.00025008,120]
[420975106,1776841706240,-500.0,0.00025008,120]
[420975107,1776841706284,-500.0,0.00025008,120]
[420975108,1776841706327,-500.0,0.00025008,120]
[420975109,1776841706370,-500.0,0.00025008,120]
[420975110,1776841706414,-500.0,0.00025008,120]
[420975111,1776841706460,-500.0,0.00025008,120]
[420975112,1776841706506,-500.0,0.00025008,120]
[420975113,1776841706552,-500.0,0.00025008,120]
[420975114,1776841706598,-500.0,0.00025008,120]
[420975115,1776841706643,-500.0,0.00025008,120]
[420975116,1776841706689,-192.88,0.00025008,120]
[420975117,1776841706734,-500.0,0.00025008,120]
[420975118,1776841706783,-500.0,0.00025008,120]
[420975119,1776841706828,-500.0,0.00025008,120]
[420975120,1776841706872,-620.66,0.00025008,120]
[420975121,1776841706915,-500.0,0.00025008,120]
[420975122,1776841706959,-284.50562067,0.00025008,120]
[420975123,1776841707002,-500.0,0.00025008,120]
[420975124,1776841707046,-500.0,0.00025008,120]
[420975125,1776841707093,-398.76,0.00025008,120]
[420975126,1776841707138,-500.0,0.00025008,120]
[420975127,1776841707183,-500.0,0.00025008,120]
[420975128,1776841707227,-500.0,0.00025008,120]
[420975129,1776841707270,-500.0,0.00025008,120]
[420975130,1776841707312,-500.0,0.00025008,120]
[420975131,1776841707353,-410.47,0.00025008,120]
[420975132,1776841707394,-500.0,0.00025008,120]
[420975133,1776841707437,-500.0,0.00025008,120]
[420975134,1776841707478,-500.0,0.00025008,120]
[420975135,1776841707521,-500.0,0.00025008,120]
[420975136,1776841707564,-500.0,0.00025008,120]
[420975137,1776841707606,-575.07781349,0.00025008,120]
[420975138,1776841707648,-500.0,0.00025008,120]
[420975139,1776841707693,-500.0,0.00025008,120]
[420975140,1776841707734,-500.0,0.00025008,120]
[420975141,1776841707776,-500.0,0.00025008,120]
[420975142,1776841707818,-217.2,0.00025008,120]
[420975143,1776841707861,-500.0,0.00025008,120]
[420975144,1776841707904,-500.0,0.00025008,120]
[420975145,1776841707947,-500.0,0.00025008,120]
[420975146,1776841707989,-500.0,0.00025008,120]
[420975147,1776841708030,-500.0,0.00025008,120]
[420975148,1776841708072,-262.65,0.00025008,120]
[420975149,1776841708229,-500.0,0.00025008,120]
[420975150,1776841708267,-581.6737537,0.00025008,120]
[420975151,1776841708307,-647.22856947,0.00025008,120]
[420975152,1776841708349,-500.0,0.00025008,120]
[420975153,1776841708389,-150.6784322,0.00025008,120]
[420975154,1776841708427,-618.26,0.00025008,120]
[420975155,1776841708466,-500.0,0.00025008,120]
[420975156,1776841708506,-491.07,0.00025008,120]
[420975157,1776841708546,-500.0,0.00025008,120]
[420975158,1776841708586,-500.0,0.00025008,120]
[420975159,1776841708625,-500.0,0.00025008,120]
[420975160,1776841708665,-500.0,0.00025008,120]
[420975161,1776841708705,-500.0,0.00025008,120]
[420975162,1776841708746,-500.0,0.00025008,120]
[420975163,1776841708786,-500.0,0.00025008,120]
[420975164,1776841708825,-500.0,0.00025008,120]
[420975165,1776841708864,-216.36,0.00025008,120]
[420975166,1776841708904,-500.0,0.00025008,120]
[420975167,1776841708943,-500.0,0.00025008,120]
[420975168,1776841708983,-500.0,0.00025008,120]
[420975169,1776841709024,-500.0,0.00025008,120]
[420975170,1776841709062,-500.0,0.00025008,120]
[420975171,1776841709100,-500.0,0.00025008,120]
[420975172,1776841709140,-500.0,0.00025008,120]
[420975173,1776841709179,-500.0,0.00025008,120]
[420975174,1776841709217,-500.0,0.00025008,120]
[420975175,1776841709255,-500.0,0.00025008,120]
[420975176,1776841709295,-548.52,0.00025008,120]
[420975177,1776841709333,-500.0,0.00025008,120]
[420975178,1776841709373,-500.0,0.00025008,120]